Cogmind - Beta 13 @@@ ROGUE MODE // 2024.04.07 @ 21:13:43 Player: Sap Result: Destroyed by D-53 Grenadier with Mini Grenade Launcher Performance ------------- Evolutions (0) 0 Regions Visited (2) 400 Robots Destroyed (9) 45 Value Destroyed (196) 196 Prototype IDs (0) 0 Alien Tech Used (0) 0 Bonus (0) 0 TOTAL SCORE: 641 Bonus ------- None Cogmind --------- Core Integrity 0/250 Matter 280/300 Energy 100/100 System Corruption 4% Temperature Cool (0) Movement Core (200) Ox3 Location -10/Mines Parts ------- > --- POWER (1) -------- (None) > --- PROPULSION (2) --- (None) > --- UTILITY (2) ------ Heat Sink Medium Storage Unit > --- WEAPON (2) ------- (None) > --- INVENTORY (10) --- Ion Engine Small Storage Unit Medium Storage Unit Improved Terrain Scanner Improved Terrain Scanner Seismic Detector Peak State ------------ > --- POWER ------------ Ion Engine > --- PROPULSION ------- Wheel Wheel > --- UTILITY ---------- Small Storage Unit Improved Terrain Scanner > --- WEAPON ----------- Medium Laser Small Laser > --- INVENTORY -------- Ion Engine Aluminum Leg Aluminum Leg Wheel Compact Wheel Small Storage Unit Improved Terrain Scanner Small Laser [Rating: 10] Favorites ----------- Power Ion Engine Engine Ion Engine Propulsion Wheel Leg Aluminum Leg Wheel Wheel Utility Medium Storage Unit Device Heat Sink Storage Medium Storage Unit Weapon Small Laser Energy Gun Small Laser Launcher Rocket Launcher Build | -11 -10 -10 ------- Run | Yrd Mat Min Slots Evolved . | . . . Power . | . . . Propulsion . | . . . Utility . | . . . Weapon . | . . . Parts Attached 16 | 7 7 2 Power 2 | 1 1 . Engine 2 | 1 1 . Core . | . . . Reactor . | . . . Propulsion 4 | 2 2 . Treads . | . . . Leg 1 | . 1 . Wheel 3 | 2 1 . Hover . | . . . Flight . | . . . Utility 6 | 2 3 1 Device 3 | 1 2 . Storage 3 | 1 1 1 Processor . | . . . Hackware . | . . . Protection . | . . . Artifact . | . . . Weapon 4 | 2 1 1 Energy Gun 3 | 2 1 . Energy Cannon . | . . . Ballistic Gun . | . . . Ballistic Cannon . | . . . Launcher 1 | . . 1 Special Weapon . | . . . Impact Weapon . | . . . Slashing Weapon . | . . . Piercing Weapon . | . . . Special Melee Weapon . | . . . Unidentified Prototypes . | . . . Parts Lost 11 | . 6 5 Power 2 | . 1 1 Propulsion 4 | . 2 2 Utility 1 | . 1 . Weapon 4 | . 2 2 Highest Loss Streak 6 | . 6 5 To Critical Strikes . | . . . Average Slot Usage (%) 84 | . 83 85 Engine 13 | . 11 14 Leg 11 | . 7 14 Wheel 15 | . 18 14 Device 13 | . 11 14 Storage 14 | . 14 14 Energy Gun 15 | . 18 13 Naked Turns . | . . . Heaviest Build 20 | 14 19 20 Greatest Support 20 | 20 20 10 Greatest Overweight (x) 6 | . 3 6 Average Overweight (x) . | . . 1 Largest Inventory Capacity 10 | 8 10 10 Average Capacity 9 | 7 9 10 Most Carried 9 | 8 9 6 Average Carried 6 | 5 6 6 Final Capacity 10 | 8 10 10 Final Carried 8 | 8 6 6 Class Distribution -------------------- 100% | Mutant Dominant Class ---------------- Mutant | -10/Materials Mutant | -10/Mines Resources | -11 -10 -10 ----------- Run | Yrd Mat Min Matter Collected 338 | 270 60 8 Remotely . | . . . Salvage Created 407 | 182 206 19 Parts 21 | 14 7 . Haulers Intercepted . | . . . Recyclers Shooed . | . . . Parts Field Recycled . | . . . Retrieved Matter . | . . . Parts Self-Destructed . | . . . Prevented . | . . . Kills | -11 -10 -10 ------- Run | Yrd Mat Min Combat Hostiles Destroyed 9 | . 4 5 Guns 4 | . 4 . AOE 5 | . . 5 Classes Destroyed 4 | 2 1 1 Tunneler 4 | 4 . . Recycler 1 | 1 . . Grunt 4 | . 4 . Assembled 5 | . . 5 Best Kill Streak 5 | 3 3 5 Combat Bots Only 5 | . 3 5 Max Kills in Single Turn 3 | 1 1 3 Gunslinging . | . . . Exploded 3 | . . 3 Melee . | . . . Uniques/NPCs Destroyed . | . . . Combat | -11 -10 -10 -------- Run | Yrd Mat Min Hostile Shots Fired 94 | . 68 26 Missed 21 | . 16 5 Damage Taken 1101 | . 703 398 Core 269 | . 188 81 Absorbed by Shields . | . . . Core Remaining (%) 100 | 100 . . Volleys Fired 47 | 18 26 3 Largest 2 | 2 2 2 Hottest 90 | 90 90 73 Shots Fired 73 | 36 33 4 Gun 70 | 36 33 1 Cannon . | . . . Launcher 3 | . . 3 Special . | . . . Kinetic . | . . . Thermal 70 | 36 33 1 Explosive 3 | . . 3 Electromagnetic . | . . . Robot Hit Streak 26 | 6 26 2 Robot Miss Streak 2 | 2 2 2 Penetration Max . | . . . Secondary Targets . | . . . Shots Hit Robots 52 | 21 29 2 Core Hits 23 | 6 11 6 Critical Kills . | . . . Critical Parts Destroyed . | . . . Critical Strikes . | . . . Melee Attacks . | . . . Impact . | . . . Slashing . | . . . Piercing . | . . . Sneak Attacks . | . . . Combat Hostiles . | . . . Follow-up Attacks . | . . . Damage Inflicted 923 | 253 331 339 Guns 596 | 253 331 12 Cannons . | . . . Explosions 327 | . . 327 Melee . | . . . Ramming . | . . . Kinetic . | . . . Thermal 596 | 253 331 12 Explosive 327 | . . 327 Electromagnetic . | . . . Impact . | . . . Slashing . | . . . Piercing . | . . . Highest Corruption 4 | . . 4 Average Corruption 3 | . . 3 Corruption Purged . | . . . Corruption Blocked . | . . . Overload Shots . | . . . Overflow Damage 29 | . . 29 Projectiles . | . . . Explosions 29 | . . 29 Melee . | . . . Knockbacks . | . . . Impact . | . . . Kinetic . | . . . Secondary . | . . . Self-Inflicted Damage 46 | . . 46 Shots 1 | . . 1 Rammed . | . . . Targets Rammed . | . . . Kicked . | . . . Crushed . | . . . Highest Temperature 374 | 120 374 . Average Temperature 91 | 46 134 . Received Heat Transfer 411 | . 411 . Siege Activations . | . . . Robots Corrupted . | . . . Combat Hostiles . | . . . Parts Fried . | . . . Impact Corruptions . | . . . Robots Melted . | . . . Combat Hostiles . | . . . Parts Melted 3 | 1 2 . Heat Transferred 1479 | 657 797 25 Parts Sabotaged . | . . . Parts Stolen . | . . . Parts Stripped . | . . . Power Chain Reactions . | . . . Alert | -11 -10 -10 ------- Run | Yrd Mat Min Peak Influence 116 | 25 116 55 Initial 45 | . 16 45 Average 40 | 11 65 45 Maximum Alert Level . | . . . Low Security (%) 100 | 100 100 100 Level 1 . | . . . Level 2 . | . . . Level 3 . | . . . Level 4 . | . . . Level 5 . | . . . High Security . | . . . Max Security . | . . . Squads Dispatched 1 | . 1 . Investigation 1 | . 1 . Extermination . | . . . Reinforcement . | . . . Assault . | . . . Garrison . | . . . Intercept . | . . . Searches Triggered . | . . . Construction Impeded . | . . . Haulers Reinforced . | . . . Active Scanning Responses . | . . . Cargo Convoy Interrupts . | . . . Stealth | -11 -10 -10 --------- Run | Yrd Mat Min Distress Signals . | . . . Communications Jammed . | . . . Distress Signals . | . . . Times Spotted 17 | . 7 10 Peak Tracking Total 6 | . 6 6 Tactical Retreats 1 | . 1 . Traps | -11 -10 -10 ------- Run | Yrd Mat Min Traps Triggered . | . . . Indirectly . | . . . Trap Hack Attempts . | . . . Triggered . | . . . Disarmed . | . . . Reprogrammed . | . . . Reused . | . . . Traps Extracted . | . . . Installed . | . . . Triggered . | . . . Machines | -11 -10 -10 ---------- Run | Yrd Mat Min Machines Disabled . | . . . Max in Single Turn . | . . . Machines Repaired . | . . . Machines Dismantled . | . . . Machines Sabotaged . | . . . Overloaded Fab Kills . | . . . Hacking | -11 -10 -10 --------- Run | Yrd Mat Min Machines Accessed 1 | . 1 . Terminals . | . . . Fabricators . | . . . Repair Stations . | . . . Recycling Units 1 | . 1 . Scanalyzers . | . . . Garrison Access . | . . . Total Hacks 2 | . 2 . Successful 2 | . 2 . Failed . | . . . Catastrophic . | . . . Database Lockouts . | . . . Manual 1 | . 1 . Terminals . | . . . Fabricators . | . . . Repair Stations . | . . . Recycling Units 2 | . 2 . Scanalyzers . | . . . Garrison Access . | . . . Terminal Hacks . | . . . Fabricator Hacks . | . . . Repair Station Hacks . | . . . Recycling Unit Hacks 1 | . 1 . Report Inventory 1 | . 1 . Scanalyzer . | . . . Garrison Access Hacks . | . . . Unauthorized Hacks 1 | . 1 . Terminals . | . . . Fabricators . | . . . Repair Stations . | . . . Recycling Units 1 | . 1 . Tunnel 1 | . 1 . Scanalyzers . | . . . Garrison Access . | . . . Data Cores Recovered . | . . . Used . | . . . Hacking Detections . | . . . Full Trace Events . | . . . Feedback Events . | . . . Feedback Blocked . | . . . Robot Schematics Acquired . | . . . Robots Built . | . . . Authchips . | . . . Time . | . . . Total Robot Build Rating . | . . . Part Schematics Acquired . | . . . Parts Built . | . . . Authchips . | . . . Time . | . . . Total Part Build Rating . | . . . Parts Repaired . | . . . Time . | . . . Parts Recycled . | . . . Recycled Matter . | . . . Retrieved Matter . | . . . Retrieved Components . | . . . Parts Scanalyzed . | . . . Part Schematics Acquired . | . . . Parts Damaged . | . . . Bothacking | -11 -10 -10 ------------ Run | Yrd Mat Min Used RIF Installer . | . . . Robots Hacked . | . . . Non-combat . | . . . Combat . | . . . Robot Hacks Applied . | . . . Relay Couplers Released . | . . . Fabnet Peak Effective % . | . . . Robots Rewired . | . . . Allies Hacked . | . . . Hacks Repelled . | . . . Allies | -11 -10 -10 -------- Run | Yrd Mat Min Total Allies . | . . . Largest Group . | . . . Highest-Rated Group . | . . . Highest-Rated Ally . | . . . Total Orders . | . . . Ally Attacks . | . . . Total Damage . | . . . Kills . | . . . Allies Corrupted . | . . . Allies Melted . | . . . Intel | -11 -10 -10 ------- Run | Yrd Mat Min Robot Analysis Total . | . . . Derelict Logs Recovered . | . . . Drone Launches . | . . . Drone Recoveries . | . . . Exploration | -11 -10 -10 ------------- Run | Yrd Mat Min Turns Passed 647 | 211 206 230 Spaces Moved 391 | 169 109 113 Core 4 | 1 1 2 Treads . | . . . Legs 152 | . 41 111 Wheels 235 | 168 67 . Hover . | . . . Flight . | . . . Fastest Speed 50 | 50 80 190 Average Speed 124 | 79 124 192 Slowest Speed 350 | 80 200 350 Overloaded Moves . | . . . Propulsion Burnouts . | . . . Robots Hopped . | . . . Cave-ins Triggered . | . . . Exploration Rate (%) 23 | 7 31 32 Regions Visited 2 Branch Regions 1 Pre-discovered Areas 1 | . 1 . Known Exits Taken . | . . . Unknown Exits Taken 2 | 1 1 . Scrap Searched . | . . . Spaces Dug . | . . . Terrain Destroyed 30 | . . 30 Melee . | . . . Projectile . | . . . AOE 30 | . . 30 Terrain Rammed . | . . . Walls Destroyed . | . . . Machines Disabled . | . . . Actions | -11 -10 -10 --------- Run | Yrd Mat Min Total 475 | 206 147 122 Wait 6 | 1 1 4 Move 389 | 168 108 113 Hop . | . . . Pick Up 13 | 10 3 . Fast Attach 9 | 7 1 1 Attach 5 | . 5 . Detach . | . . . Swap 2 | . 1 1 Drop 4 | 2 2 . Fire 47 | 18 26 3 Melee . | . . . Ram . | . . . Kick . | . . . Crush . | . . . Escape Stasis . | . . . Rewire . | . . . Trap . | . . . Miscellaneous . | . . . Route ------- -11/Scrapyard -10/Materials (discovered 2 exits: [*Min x2]) -10/Mines History --------- Turn | Location | Event 22 | -11/Scrapyard | Discovered new exit (range 15) 212 | -11/Scrapyard | Entered Materials 229 | -10/Materials | Discovered new exit (range 13) 308 | -10/Materials | Core integrity fell below 50% 326 | -10/Materials | Build established: Mutant 332 | -10/Materials | Lost 6 parts (1p2n1u2w) 387 | -10/Materials | Discovered new exit (range 16) 418 | -10/Materials | Entered Mines 441 | -10/Mines | Met a Derelict bent on vengeance 622 | -10/Mines | Assembled infested the area 628 | -10/Mines | Received a Rocket Launcher from a helpful Derelict 640 | -10/Mines | Core integrity fell below 20% 648 | -10/Mines | Destroyed by D-53 Grenadier with Mini Grenade Launcher Last Messages --------------- 00628_ K6-T49(g) slips back into the shadows. 00635_ Acquired Rocket Launcher. 00636_ Destroyed Asb. Hover Unit. 00638_ Sml. Laser destroyed. 00638_ System corrupted by crushing effect (+2). 00639_ as-75582 destroyed. 00640_ Wheel destroyed. 00640_ System corrupted by crushing effect (+2). 00641_ as-96080 destroyed. 00641_ as-02184 destroyed. 00641_ Aluminum Leg destroyed. 00641_ Destroyed Aluminum Leg. 00641_ as-59612 destroyed. 00643_ Acquired 8 matter. 00645_ Rocket Launcher destroyed. 00645_ K-01 Serf collects debris. 00647_ U-05 Engineer builds a Wall. 00648_ C-30 ARC bursts open, deploying its payload. 00648_ D-53 Grenadier unfolds itself. 00648_ Ion Engine destroyed. Map ----- +----------------------------------------------------+ | ?????????????????????????????????????????????????? | | ?????????????????????????????????????????????????? | | ?????????????????????????????????????????????????? | | ?????????????????????????????????????????????????? | | ?????????????????????????????????????????????????? | | ?????????????????????????????????????????????????? | | ?????????????????????????????????????????????????? | | ?????????????????????????????????????????????????? | | ?????????????????????????????????????????????????? | | ??????????????????????????????????????????????? | | ???????????????????????????????????????????????""" | | ???????????????????????????????????????????????""" | | ??????????????????#????????????????????????????""" | | ??????????????????# ???????????????????????????? | | ???????????????#?## ???????????????????????????? | | ???????????????# ? ??????????????????????????? | | ???????????????# ? #??????????????????????????# | | ???????????????# ## #???????##????????????????# | | ?????????????### a ??????? ????????????????# | | ????????????## a % ?????? #????????????????# | | ????????????# ?????? #????????????????# | | ?????????????# a ###### #????????????????# | | ??????????????# # # #???????????????## | | ??????????????# #k#????????????#### | | ???????????????# % % #?????????#### | | ???????????????####### @ #????????## ! | | ?????????????????????# #????????# ! | | ?????????????????????# ## #????????# # ! | | ????????????????????# ### ##????????## ## !! | | ????????????????????# ##?# #??????????###### | | ?????????????????? d%d #???# #???????????????#### | | ?????????????????#### #????# #??????????????????? | | ????????????????????###?????# #??????????????????? | | ???????????????????????????## #????####??????????? | | ??????????????????????????## ##??## ##????????## | | ?????????????????????????## #### #???????## | | ?????????????????????????# ## #??###### | | ?????????????????????????# #### ## | | ?????????????????????????## ## ## | | ??????????????????????????##### | | ??????????????????????????????# # | | ??????????????????????????????# ## | | ??????????????????????????????# ### | | ??????????????????????????????# ##?###### | | ??????????????????????????????###???????## ## # | | ????????????????????????????????????????## ###### | | ??????????????????????????????????????### ##????# | | ?????????????????????????????????????## #????## | | ?????????????????????????????????????# #????# | | ?????????????????????????????????????## #????## | +----------------------------------------------------+ Best States ------------- Heat Dissipation 35 Energy Generation 10 Energy Capacity 250 Matter Stores 300 Matter Capacity 300 Sight Range 16 Terrain Scan Range 16 Terrain Scan Density 10 Evasion (%) 44 Item Schematics ----------------- None Robot Schematics ------------------ None Fabricated ------------ Nothing Alien Tech Used ----------------- None Achievements -------------- Brute Force Challenges ------------ None Game ------ Seed CentriumGyrokineticFilter Manual? 0 Play Time 00:14:58 Cumulative 13.6 hours Start 2024.04.07 @ 18:32:24 End 2024.04.07 @ 21:13:43 Sessions 2 Manual Loads 0 Difficulty Rogue Special Mode None Game No. 10 Rogue 9 Adventurer 0 Explorer 1 Win Type - Total 0 Types 0/0/0/0/0/0/0/0/0 Lore% 7 Gallery% 19 Achievement% 12 Wizard Run 0 Options --------- Layout 0 ASCII 0 Keyboard 0 Movement Numpad Keybinds 0 Fullscreen 2 Font 24/Smallcaps Map View 76x50 Zoom Use 0% Tactical HUD 1 Map Filters NONE Filters NONE Steam 1 RUN: 19394ef6-bbaa-4677-8ac8-5383a4ec2222